bitfinex/quotes_SOLUSD_20240822
["timestamp","ask_amount","ask_price","bid_price","bid_amount"]
[1724330780173,7.1483681,143.42,143.33,15.4045]
[1724330780406,7.1483681,143.42,143.34,49.04]
[1724330781878,7.1483681,143.42,143.32,7.36871091]
[1724330782177,14.1208681,143.42,143.33,20.0]
[1724330782385,0.12549,143.41,143.29,290.6375]
[1724330782583,20.12549,143.41,143.32,49.04]
[1724330783584,0.9179681,143.4,143.32,49.04]
[1724330784582,0.9179681,143.4,143.34,49.04]
[1724330784784,28.14636305,143.41,143.34,49.04]
[1724330786384,7.22839495,143.41,143.36,49.04]
[1724330786581,6.2304,143.42,143.37,1.39483898]
[1724330786783,23.20746231,143.44,143.38,49.8996999]
[1724330786990,23.20746231,143.44,143.39,1.39463867]
[1724330787218,7.22286231,143.44,143.4,49.04]
[1724330787497,7.22656024,143.45,143.4,50.43447421]
[1724330787697,6.334,143.46,143.4,50.43447421]
[1724330787882,8.72629525,143.45,143.42,49.04]
[1724330788076,7.22550148,143.48,143.44,49.04]
[1724330788288,6.6472,143.5,143.44,49.04]
[1724330788488,15.94847016,143.49,143.44,49.04]
[1724330788673,8.72398494,143.48,143.45,46.39407159]
[1724330788888,6.6472,143.5,143.45,45.0]
[1724330789196,8.72350597,143.49,143.45,45.0]
[1724330789397,14.78923577,143.5,143.45,45.0]
[1724330789598,8.72342926,143.49,143.45,45.0]
[1724330789898,0.9179681,143.48,143.45,45.0]
[1724330790099,13.87126767,143.5,143.42,49.04]
[1724330790313,8.72376117,143.49,143.42,49.04]
[1724330790486,8.72376117,143.48,143.4,49.04]
[1724330790686,8.72376117,143.47,143.4,49.04]
[1724330790991,0.9179681,143.46,143.4,49.04]
[1724330791183,20.9179681,143.49,143.4,49.04]
[1724330791378,14.84496597,143.48,143.4,49.04]
[1724330791577,8.72441168,143.47,143.42,49.04]
[1724330792010,20.0,143.49,143.42,49.04]
[1724330792415,8.72426349,143.48,143.43,45.0]
[1724330792895,8.72426349,143.47,143.43,45.0]
[1724330793079,20.9179681,143.49,143.43,45.0]
[1724330793598,8.72394992,143.48,143.43,45.0]
[1724330794018,8.72394992,143.48,143.44,50.43413101]
[1724330794183,8.72394992,143.47,143.45,45.0]
[1724330794495,6.6472,143.5,143.45,45.0]
[1724330794698,13.92717621,143.49,143.45,45.0]
[1724330795007,8.72359232,143.48,143.45,45.0]
[1724330795198,8.72359232,143.47,143.45,45.0]
[1724330795405,6.6472,143.5,143.45,45.0]
[1724330795594,13.92684063,143.49,143.46,1.39397236]
[1724330795790,8.72353748,143.49,143.45,45.0]
[1724330795988,9.64150558,143.48,143.45,45.0]
[1724330796194,8.72353748,143.47,143.42,49.04]
[1724330796401,8.72353748,143.47,143.43,45.0]
[1724330796589,30.78261261,143.51,143.43,45.0]
[1724330796797,30.78261261,143.51,143.39,35.3068]
[1724330796798,6.9695,143.49,143.4,49.04]
[1724330797120,14.05189795,143.48,143.4,49.04]
[1724330797284,8.72368293,143.47,143.4,49.04]
[1724330797486,8.72368293,143.46,143.4,49.04]
[1724330798187,8.72368293,143.46,143.42,49.04]
[1724330799892,0.9179681,143.45,143.4,49.04]
[1724330800190,0.9179681,143.45,143.38,49.8996999]
[1724330800384,5.20214918,143.44,143.38,49.8996999]
[1724330800589,8.72540266,143.43,143.38,49.8996999]
[1724330800783,8.72540266,143.42,143.38,49.8996999]
[1724330800987,0.9179681,143.46,143.4,49.04]
[1724330801207,8.72530439,143.45,143.4,49.04]
[1724330801423,13.92756011,143.45,143.4,49.04]
[1724330801627,13.92756011,143.44,143.41,45.0]
[1724330801908,8.72530439,143.43,143.41,45.0]
[1724330802214,8.72530439,143.42,143.4,49.04]
[1724330802403,9.64327249,143.41,143.38,0.8596999]
[1724330802605,13.92697927,143.4,143.38,0.8596999]
[1724330802908,8.72530439,143.39,143.38,0.8596999]
[1724330803820,13.92647694,143.39,143.38,0.8596999]
[1724330804692,13.92613137,143.39,143.38,0.8596999]
[1724330805100,13.92947276,143.39,143.38,0.8596999]
[1724330806993,14.84744086,143.39,143.38,0.8596999]
[1724330807218,13.92947276,143.39,143.38,0.8596999]
[1724330807412,8.72864578,143.39,143.38,0.8596999]
[1724330808198,8.72762443,143.39,143.38,0.8596999]
[1724330814905,8.72775647,143.39,143.38,0.8596999]
[1724330815113,8.72775647,143.41,143.38,0.8596999]
[1724330815307,8.72775647,143.39,143.38,0.8596999]
[1724330815509,8.72775647,143.4,143.38,0.8596999]
[1724330815723,8.72775647,143.39,143.38,0.8596999]
[1724330815913,8.72775647,143.41,143.38,0.8596999]
[1724330816227,0.9179681,143.42,143.38,0.8596999]
[1724330816228,8.72775647,143.4,143.38,0.8596999]
[1724330816431,8.72775647,143.39,143.38,0.8596999]
[1724330816730,8.72775647,143.41,143.38,0.8596999]
[1724330816911,8.72775647,143.4,143.38,0.8596999]
[1724330817114,8.72775647,143.39,143.38,0.8596999]
[1724330817302,8.72775647,143.41,143.38,0.8596999]
[1724330817509,8.72775647,143.4,143.39,49.04]
[1724330817703,8.55404528,143.46,143.39,94.04]
[1724330818013,29.44160224,143.45,143.41,49.04]
[1724330818207,22.0507,143.48,143.41,49.04]
[1724330818208,13.92686813,143.44,143.41,49.04]
[1724330818411,8.72679964,143.43,143.41,49.04]
[1724330818746,7.22969803,143.46,143.39,49.04]
[1724330818747,0.9179681,143.45,143.39,49.04]
[1724330819020,13.92565052,143.44,143.39,49.04]
[1724330819206,8.72565385,143.43,143.38,0.8596999]
[1724330819405,8.72565385,143.42,143.38,0.8596999]
[1724330819612,8.72565385,143.41,143.38,0.8596999]
[1724330819823,8.72565385,143.4,143.38,0.8596999]
[1724330820001,0.9179681,143.44,143.38,0.8596999]
[1724330820200,13.92626797,143.43,143.38,0.8596999]
[1724330820420,14.84423607,143.42,143.38,0.8596999]
[1724330820729,8.72677987,143.41,143.38,0.8596999]
[1724330821048,8.72677987,143.4,143.38,0.8596999]
[1724330821237,0.9179681,143.44,143.38,0.8596999]
[1724330821530,22.20969362,143.43,143.38,0.8596999]
[1724330821726,13.92277368,143.42,143.38,0.8596999]
[1724330821907,8.72697303,143.41,143.38,0.8596999]
[1724330822104,8.72697303,143.4,143.38,0.8596999]
[1724330822335,0.9179681,143.44,143.38,0.8596999]
[1724330822541,22.20819356,143.43,143.38,0.8596999]
[1724330822840,14.83992354,143.42,143.38,0.8596999]
[1724330823021,8.72658656,143.41,143.38,0.8596999]
[1724330823206,8.72658656,143.4,143.38,0.8596999]
[1724330823410,0.9179681,143.44,143.38,0.8596999]
[1724330823612,22.2101011,143.43,143.38,0.8596999]
[1724330823924,14.84062861,143.42,143.38,0.8596999]
[1724330824125,8.72653823,143.41,143.38,0.8596999]
[1724330824320,8.72653823,143.4,143.38,0.8596999]
[1724330824511,9.46845956,143.45,143.39,49.04]
[1724330824712,22.21009605,143.44,143.39,49.04]
[1724330824920,13.92268474,143.43,143.39,49.04]
[1724330825115,8.72658032,143.42,143.4,1.3944213]
[1724330825323,8.72658032,143.41,143.39,49.04]
[1724330825635,0.9179681,143.45,143.39,49.04]
[1724330825948,22.20873167,143.44,143.38,0.8596999]
[1724330826240,23.12669977,143.43,143.38,0.8596999]
[1724330826445,14.83982502,143.42,143.38,0.8596999]
[1724330826743,13.92185692,143.41,143.38,0.8596999]
[1724330827038,8.72726813,143.4,143.38,0.8596999]
[1724330827354,0.9179681,143.42,143.38,0.8596999]
[1724330827520,8.72726978,143.41,143.38,0.8596999]
[1724330827712,8.72726978,143.4,143.38,0.8596999]
[1724330828421,8.72726978,143.39,143.38,0.8596999]
[1724330830410,8.72762222,143.39,143.38,0.8596999]
[1724330831737,8.5469067,143.45,143.38,45.8596999]
[1724330831933,16.86842614,143.44,143.38,0.8596999]
[1724330832234,21.7895,143.42,143.38,0.8596999]
[1724330832424,73.94321128,143.41,143.38,0.8596999]
[1724330832627,17.01184318,143.4,143.38,0.8596999]
[1724330832933,17.92981128,143.39,143.38,0.8596999]
[1724330833941,17.92710926,143.39,143.38,0.8596999]
[1724330834738,17.92957788,143.39,143.38,0.8596999]
[1724330837010,24.90347788,143.39,143.38,0.8596999]
[1724330838022,6.977,143.33,143.26,15.6665]
[1724330838228,9.64726659,143.32,143.26,15.6665]
[1724330838540,8.72929849,143.31,143.26,15.6665]
[1724330838721,8.72929849,143.3,143.26,15.6665]
[1724330838926,8.73349719,143.29,143.26,15.6665]
[1724330839138,6.9768,143.34,143.26,15.6665]
[1724330839139,0.9179681,143.33,143.26,15.6665]
[1724330839329,9.65170178,143.32,143.26,15.6665]
[1724330839511,8.73373368,143.31,143.26,15.6665]
[1724330839838,8.73373368,143.3,143.26,15.6665]
[1724330840035,0.9179681,143.32,143.26,15.6665]
[1724330840240,8.73359399,143.31,143.26,15.6665]
[1724330840446,8.73345174,143.3,143.26,15.6665]
[1724330840637,0.9179681,143.35,143.26,15.6665]
[1724330840839,17.13802162,143.34,143.26,15.6665]
[1724330841018,0.9179681,143.33,143.26,15.6665]
[1724330841219,9.65112597,143.32,143.26,15.6665]
[1724330841437,8.73315787,143.31,143.26,15.6665]
[1724330841637,0.9179681,143.3,143.26,15.6665]
[1724330841838,0.9179681,143.3,143.25,56.0208]
[1724330842141,7.2292681,143.33,143.25,56.0208]
[1724330842332,7.22804307,143.31,143.23,49.8996999]
[1724330842645,9.65161048,143.3,143.23,49.8996999]
[1724330842946,9.65161048,143.29,143.23,49.8996999]
[1724330843141,0.9179681,143.29,143.23,49.8996999]
[1724330843947,0.9179681,143.3,143.23,56.8812999]
[1724330844243,8.73496241,143.29,143.23,56.8812999]
[1724330844445,0.9179681,143.28,143.23,56.8812999]
[1724330844644,0.9179681,143.3,143.23,56.8812999]
[1724330844822,8.73487158,143.29,143.25,49.04]
[1724330845026,7.22804307,143.31,143.27,49.04]
[1724330845846,7.22804307,143.31,143.27,56.0197]
[1724330846038,7.22804307,143.31,143.28,6.9792]
[1724330846221,6.3113,143.33,143.28,6.9792]
[1724330846422,6.3113,143.33,143.27,56.0196]
[1724330846423,8.73357837,143.32,143.27,56.0196]
[1724330846721,7.22666176,143.33,143.27,56.0196]
[1724330846928,8.73357672,143.32,143.29,49.04]
[1724330847122,7.22666176,143.33,143.29,49.04]
[1724330847437,8.73352502,143.32,143.29,49.04]
[1724330847637,7.22666176,143.33,143.29,49.04]
[1724330847841,8.73352667,143.32,143.29,49.04]
[1724330848035,7.22666176,143.33,143.29,49.04]
[1724330848235,8.73352667,143.32,143.29,56.0187]
[1724330848442,8.14521166,143.35,143.29,56.0187]
[1724330848623,8.73288755,143.34,143.31,49.04]
[1724330848823,7.22724356,143.35,143.31,49.04]
[1724330849133,8.73206551,143.34,143.31,49.04]
[1724330849345,7.22724356,143.35,143.31,56.0177]
[1724330849727,0.9179681,143.39,143.31,56.0177]
[1724330849927,7.22659192,143.37,143.31,56.0177]
[1724330850128,9.64932808,143.36,143.31,49.04]
[1724330850328,8.73135998,143.35,143.31,49.04]
[1724330850564,9.64932808,143.35,143.24,16.1973]
[1724330850729,8.73135998,143.34,143.26,49.04]
[1724330850929,0.9179681,143.33,143.26,49.04]
[1724330851422,7.22659192,143.37,143.26,49.04]
[1724330851423,8.14456002,143.37,143.3,49.04]
[1724330851625,8.73221777,143.36,143.3,49.04]
[1724330851955,8.14456002,143.37,143.3,49.04]
[1724330852428,8.73182884,143.35,143.3,49.04]
[1724330852628,7.22659192,143.37,143.3,49.04]
[1724330852959,8.73200721,143.36,143.3,49.04]
[1724330853128,8.73200721,143.35,143.3,49.04]
[1724330853328,8.73200721,143.34,143.28,49.04]
[1724330853652,0.9179681,143.36,143.29,45.0]
[1724330853829,8.73221004,143.35,143.29,45.0]
[1724330854160,9.65017814,143.34,143.26,49.04]
[1724330854334,8.73221004,143.33,143.26,49.04]
[1724330854529,0.9179681,143.32,143.26,56.0201]
[1724330854944,0.9179681,143.32,143.26,49.04]
[1724330855149,0.9179681,143.32,143.25,56.0206]
[1724330859035,0.9179681,143.32,143.25,49.04]
[1724330859258,0.12549,143.31,143.25,49.04]
[1724330859442,1.0434581,143.31,143.25,49.04]
[1724330859644,21.4846,143.3,143.23,0.8596999]
[1724330859828,0.9179681,143.29,143.23,7.8413999]
[1724330860733,0.9179681,143.29,143.23,0.8596999]
[1724330861448,8.73653695,143.28,143.23,0.8596999]
[1724330861648,0.9179681,143.27,143.23,0.8596999]
[1724330862255,0.9179681,143.26,143.23,0.8596999]
[1724330863456,0.9179681,143.27,143.23,0.8596999]
[1724330863657,7.8975681,143.28,143.23,0.8596999]
[1724330863845,0.9179681,143.28,143.23,0.8596999]
[1724330865141,8.73768064,143.27,143.23,0.8596999]
[1724330865354,0.9179681,143.28,143.23,0.8596999]
[1724330865532,20.9179681,143.29,143.23,49.8996999]
[1724330865738,8.73695096,143.28,143.23,49.8996999]
[1724330865940,20.9179681,143.29,143.23,49.8996999]
[1724330866255,7.23731308,143.3,143.25,49.04]
[1724330866438,0.9179681,143.33,143.25,56.0206]
[1724330866641,15.97581606,143.32,143.26,6.9801]
[1724330866833,9.6536886,143.31,143.26,6.9801]
[1724330867031,8.7357205,143.3,143.26,6.9801]
[1724330867229,7.24009556,143.32,143.27,6.9797]
[1724330867451,8.73491391,143.31,143.27,56.0197]
[1724330867649,8.15806366,143.32,143.27,56.0197]
[1724330867962,8.73484662,143.31,143.27,49.04]
[1724330868258,8.15806366,143.32,143.27,49.04]
[1724330868443,8.15806366,143.32,143.27,56.0197]
[1724330868444,8.73474732,143.31,143.27,56.0197]
[1724330868643,8.15806366,143.32,143.27,56.0197]
[1724330868847,9.65280856,143.31,143.27,56.0197]
[1724330869046,0.9179681,143.31,143.27,56.0197]
[1724330869247,0.9179681,143.31,143.27,49.04]
[1724330870182,8.73518475,143.3,143.27,49.04]
[1724330870346,0.9179681,143.31,143.27,49.04]
[1724330871451,8.73499106,143.3,143.27,49.04]
[1724330871648,0.9179681,143.31,143.27,49.04]
[1724330872074,8.73499106,143.3,143.27,49.04]
[1724330872246,0.9179681,143.31,143.27,49.04]
[1724330872447,8.7349843,143.3,143.27,49.04]
[1724330872656,0.9179681,143.31,143.26,6.9801]
[1724330872857,8.73490525,143.3,143.24,45.0]
[1724330873062,0.9179681,143.31,143.23,49.8996999]
[1724330873361,8.73491776,143.3,143.23,49.8996999]
[1724330873558,8.15806366,143.32,143.25,49.04]
[1724330873758,8.73480564,143.31,143.25,49.04]
[1724330873959,8.73480564,143.3,143.25,49.04]
[1724330874167,8.15806366,143.32,143.26,6.9802]
[1724330874347,8.73475392,143.31,143.26,6.9802]
[1724330874547,8.73475392,143.3,143.26,6.9802]
[1724330874749,7.24009556,143.32,143.27,50.43581335]
[1724330875054,7.24009556,143.32,143.27,57.41541335]
[1724330875263,8.73436106,143.31,143.28,6.9792]
[1724330875451,8.73436106,143.3,143.28,6.9792]
[1724330875650,7.24009556,143.32,143.29,56.0188]
[1724330875851,21.7786,143.34,143.3,6.9783]
[1724330875852,15.6655,143.34,143.3,6.9783]
[1724330876056,8.73370261,143.33,143.31,49.04]
[1724330876260,16.5031,143.38,143.32,95.4352641]
[1724330876261,8.53488526,143.38,143.32,95.4352641]
[1724330876562,8.73237221,143.37,143.34,56.0163]
[1724330876885,0.9179681,143.39,143.34,56.0163]
[1724330877053,0.9179681,143.39,143.34,49.04]
[1724330877255,8.16701529,143.4,143.32,94.04]
[1724330877664,7.24904719,143.4,143.34,49.04]
[1724330877966,49.04,143.45,143.32,45.0]
[1724330877967,15.1846,143.44,143.36,49.04]
[1724330878268,7.25093696,143.42,143.37,1.39482497]
[1724330878464,0.9179681,143.41,143.36,49.04]
[1724330878668,7.25093696,143.42,143.36,49.04]
[1724330878848,7.25093696,143.42,143.37,1.3948826]
[1724330879161,7.25093696,143.42,143.38,49.04]
[1724330879555,7.25093696,143.42,143.33,20.0]
[1724330879556,7.25093696,143.42,143.36,49.04]
[1724330879868,0.9179681,143.41,143.34,49.04]
[1724330880240,0.9179681,143.41,143.32,49.04]
[1724330882140,0.9179681,143.41,143.33,45.0]
[1724330882338,7.8909681,143.41,143.32,49.04]
[1724330883059,7.8909681,143.41,143.3,49.04]
[1724330883254,7.8909681,143.41,143.31,45.0]
[1724330883255,6.9735,143.4,143.31,45.0]
[1724330883442,7.8919681,143.39,143.31,45.0]
[1724330883647,7.8919681,143.39,143.3,49.04]
[1724330883841,6.9746,143.38,143.29,16.4239]
[1724330884057,15.3362,143.36,143.25,15.0576]
[1724330884349,7.8938681,143.35,143.25,15.0576]
[1724330884650,0.9179681,143.35,143.25,15.0576]
[1724330885366,7.8938681,143.35,143.25,22.0384]
[1724330885558,6.9764,143.34,143.25,22.0384]
[1724330885870,0.9179681,143.33,143.25,22.0384]
[1724330887071,0.9179681,143.34,143.26,56.0202]
[1724330887243,20.0,143.35,143.26,49.04]
[1724330887442,15.3362,143.36,143.29,6.9788]
[1724330887669,5.18663482,143.35,143.3,45.0]
[1724330887964,5.18663482,143.35,143.28,49.04]
[1724330887965,5.18663482,143.34,143.29,45.0]
[1724330888687,0.9179681,143.35,143.29,45.0]
[1724330888870,0.9179681,143.35,143.27,49.04]
[1724330888871,5.18625687,143.34,143.27,49.04]
[1724330889065,5.18625687,143.33,143.28,45.0]
[1724330889286,0.9179681,143.35,143.28,45.0]
[1724330889480,5.18643744,143.34,143.28,45.0]
[1724330889782,6.10440554,143.33,143.28,45.0]
[1724330889967,5.18618848,143.32,143.27,49.04]
[1724330890173,22.58830909,143.36,143.27,49.04]
[1724330890174,0.9179681,143.35,143.27,56.0195]
[1724330890482,5.18597516,143.34,143.27,56.0195]
[1724330890669,5.18597516,143.33,143.27,56.0195]
[1724330890981,23.50627719,143.36,143.28,6.9792]
[1724330891162,5.18677689,143.35,143.29,6.9787]
[1724330891370,5.18677689,143.34,143.29,6.9787]
[1724330891568,23.50627719,143.36,143.3,45.0]
[1724330891899,5.18707498,143.35,143.3,45.0]
[1724330892083,5.18707498,143.34,143.3,45.0]
[1724330892261,23.50627719,143.36,143.3,45.0]
[1724330892466,6.10590733,143.35,143.29,6.9787]
[1724330892668,5.18793923,143.34,143.29,6.9787]
[1724330892863,5.18793923,143.33,143.29,6.9787]
[1724330893068,0.9179681,143.35,143.29,6.9787]
[1724330893286,5.18766001,143.34,143.27,49.04]
[1724330893482,22.58830909,143.36,143.29,49.04]
[1724330893700,5.18806318,143.35,143.33,49.04]
[1724330893904,5.18828323,143.35,143.33,49.04]
[1724330894065,23.41868637,143.4,143.34,45.0]
[1724330894265,5.18851054,143.39,143.34,45.0]
[1724330894465,5.18851054,143.38,143.34,45.0]
[1724330894666,5.18851054,143.37,143.34,45.0]
[1724330894878,5.18851054,143.36,143.34,45.0]
[1724330895078,23.41868637,143.4,143.34,45.0]
[1724330895281,5.18859863,143.39,143.34,45.0]
[1724330895475,5.18859863,143.38,143.34,45.0]
[1724330895673,5.18859863,143.37,143.34,45.0]
[1724330895869,5.18859863,143.36,143.34,45.0]
[1724330896105,7.25178637,143.4,143.34,45.0]
[1724330896276,5.18859631,143.39,143.34,45.0]
[1724330896478,5.18859631,143.38,143.34,45.0]
[1724330896774,5.18859631,143.37,143.35,49.04]
[1724330896965,5.18859631,143.36,143.35,49.04]
[1724330897170,5.18859631,143.36,143.35,45.0]
[1724330897571,5.18859631,143.36,143.34,45.0]
[1724330897790,7.25178637,143.4,143.34,45.0]
[1724330897990,5.18859249,143.39,143.34,45.0]
[1724330898208,5.18859249,143.38,143.34,45.0]
[1724330898516,5.18859249,143.37,143.34,45.0]
[1724330898717,7.25178637,143.4,143.34,45.0]
[1724330898718,5.18859249,143.36,143.34,45.0]
[1724330898880,7.25178637,143.4,143.34,45.0]
[1724330899080,5.18853783,143.39,143.34,45.0]
[1724330899277,5.18853783,143.38,143.34,45.0]
[1724330899598,5.18853783,143.37,143.35,49.04]
[1724330899788,7.25178637,143.4,143.36,45.0]
[1724330900093,5.18922997,143.39,143.37,50.43466974]
[1724330900297,16.5689,143.43,143.38,45.0]
[1724330900480,5.18941505,143.42,143.39,1.39446596]
[1724330900686,5.18941505,143.41,143.39,1.39446596]
[1724330900887,5.18941505,143.4,143.37,49.04]
[1724330901197,5.18941505,143.39,143.35,49.04]
[1724330901416,0.9179681,143.42,143.36,45.0]
[1724330901596,5.1895212,143.41,143.36,45.0]
[1724330901901,5.1895212,143.4,143.36,45.0]
[1724330902095,5.1895212,143.39,143.35,49.04]
[1724330902295,0.9179681,143.42,143.35,49.04]
[1724330902473,5.1892286,143.41,143.35,49.04]
[1724330902674,5.1892286,143.4,143.35,49.04]
[1724330902875,5.1892286,143.39,143.35,49.04]
[1724330903076,0.9179681,143.42,143.35,49.04]
[1724330903382,5.1894577,143.41,143.35,49.04]
[1724330903579,0.9179681,143.4,143.33,49.04]
[1724330903893,5.1894577,143.4,143.34,45.0]
[1724330904098,7.8901681,143.43,143.34,45.0]
[1724330904099,5.1894577,143.39,143.34,45.0]
[1724330904278,0.9179681,143.42,143.35,49.04]
[1724330904479,5.18920063,143.41,143.35,49.04]
[1724330904803,5.18920063,143.4,143.34,45.0]
[1724330904983,5.18920063,143.39,143.34,45.0]
[1724330905184,5.18920063,143.38,143.34,45.0]
[1724330905500,7.8905681,143.42,143.34,45.0]
[1724330905706,5.18875088,143.41,143.34,45.0]
[1724330906002,5.18875088,143.4,143.34,45.0]
[1724330906204,5.18875088,143.39,143.34,45.0]
[1724330906501,7.8904681,143.42,143.34,45.0]
[1724330906885,5.18905523,143.41,143.34,45.0]
[1724330907084,5.18905523,143.4,143.34,45.0]
[1724330907383,5.18905523,143.39,143.34,45.0]
[1724330907584,5.18905523,143.38,143.34,45.0]
[1724330907785,0.9179681,143.42,143.34,45.0]
[1724330907979,5.1887194,143.41,143.34,45.0]
[1724330908179,5.1887194,143.4,143.34,45.0]
[1724330908379,5.1887194,143.39,143.34,45.0]
[1724330908595,5.1887194,143.38,143.34,45.0]
[1724330908788,0.9179681,143.42,143.34,45.0]
[1724330908993,5.18878249,143.41,143.34,45.0]
[1724330909194,5.18878249,143.4,143.35,1.39479432]
[1724330909393,5.18878249,143.39,143.35,1.39479432]
[1724330909592,5.18878249,143.38,143.34,45.0]
[1724330909797,6.9721,143.43,143.34,45.0]
[1724330910104,5.18900274,143.42,143.34,45.0]
[1724330910305,5.18900274,143.41,143.34,45.0]
[1724330910505,5.18900274,143.4,143.34,45.0]
[1724330910808,5.18900274,143.39,143.34,45.0]
[1724330910979,5.18900274,143.38,143.34,45.0]
[1724330911180,7.25265285,143.41,143.34,45.0]
[1724330911383,5.18901214,143.4,143.34,45.0]
[1724330911583,5.18901214,143.39,143.34,45.0]
[1724330911885,5.18901214,143.38,143.34,45.0]
[1724330912109,5.18901214,143.37,143.34,45.0]
[1724330912383,22.32415285,143.41,143.32,49.04]
[1724330912384,23.24212095,143.41,143.33,45.0]
[1724330912700,5.18867659,143.4,143.33,45.0]
[1724330912892,5.18867659,143.39,143.33,45.0]
[1724330913202,5.18856678,143.38,143.33,45.0]
[1724330913803,5.18856678,143.37,143.33,45.0]
[1724330913979,5.18856678,143.36,143.33,45.0]
[1724330914179,23.24212095,143.41,143.33,45.0]
[1724330914442,5.18861263,143.4,143.33,45.0]
[1724330914580,5.18861263,143.39,143.33,45.0]
[1724330914899,5.18861263,143.38,143.33,45.0]
[1724330915199,5.18861263,143.37,143.33,45.0]
[1724330915391,5.18861263,143.36,143.33,45.0]
[1724330915697,23.24212095,143.41,143.33,45.0]
[1724330915698,6.4931,143.4,143.33,45.0]
[1724330915897,6.10582009,143.39,143.32,45.0]
[1724330916097,5.18785199,143.38,143.32,45.0]
[1724330916302,5.18785199,143.37,143.28,49.04]
[1724330916497,5.18785199,143.36,143.28,49.04]
[1724330916806,5.18788126,143.35,143.28,49.04]
[1724330917106,5.18788126,143.34,143.29,20.0]
[1724330917302,5.18788126,143.34,143.28,49.04]
[1724330917303,0.9179681,143.39,143.28,49.04]
[1724330917514,5.18799866,143.38,143.28,49.04]
[1724330917681,5.18799866,143.37,143.29,45.12549]
[1724330917881,5.18799866,143.36,143.29,45.12549]
[1724330918115,5.18799866,143.35,143.29,45.12549]
[1724330918312,5.18799866,143.34,143.29,45.0]
[1724330918516,5.18799866,143.33,143.28,49.04]
[1724330918729,0.9179681,143.37,143.28,49.04]
[1724330918936,5.18756893,143.36,143.28,49.04]
[1724330919131,5.18756893,143.35,143.28,49.04]
[1724330919299,0.9179681,143.37,143.28,49.04]
[1724330919300,5.18756893,143.34,143.28,49.04]
[1724330919500,5.18756893,143.33,143.28,49.04]
[1724330919722,5.18767927,143.32,143.29,45.0]
[1724330920026,5.18767927,143.32,143.27,16.3597]
[1724330920027,0.9179681,143.37,143.28,45.0]
[1724330920531,5.18769155,143.36,143.28,45.0]
[1724330920738,16.6298681,143.35,143.28,45.0]
[1724330921031,5.18784098,143.34,143.27,6.9796]
[1724330921202,5.18784098,143.33,143.27,6.9796]
[1724330921400,5.18784098,143.32,143.27,6.9796]
[1724330921697,5.18784098,143.32,143.28,6.9792]
[1724330921903,23.88597106,143.35,143.28,6.9792]
[1724330922110,5.18564825,143.34,143.28,6.9792]
[1724330922312,5.18564825,143.33,143.29,45.0]
[1724330922525,5.18564825,143.32,143.29,45.0]
[1724330922719,22.96800296,143.35,143.29,51.9787]
[1724330922922,5.18599617,143.34,143.29,51.9787]
[1724330923105,5.18599617,143.33,143.29,45.0]
[1724330923308,5.18599617,143.32,143.28,45.0]
[1724330923523,5.18599617,143.31,143.28,45.0]
[1724330923722,23.88597106,143.35,143.28,45.0]
[1724330924119,5.18590869,143.34,143.28,45.0]
[1724330924427,5.18590869,143.33,143.28,45.0]
[1724330924628,5.18590869,143.32,143.28,45.0]
[1724330924927,5.18590869,143.31,143.28,45.0]
[1724330925129,6.412,143.34,143.28,45.0]
[1724330925314,5.18660649,143.33,143.28,45.0]
[1724330925508,5.18660649,143.32,143.28,45.0]
[1724330925706,5.18660649,143.31,143.28,45.0]
[1724330925912,7.3299681,143.34,143.28,45.0]
[1724330926221,5.18665907,143.33,143.28,45.0]
[1724330926406,5.18665907,143.32,143.28,45.0]
[1724330926607,5.18665907,143.31,143.24,16.532]
[1724330926818,5.18665907,143.3,143.24,16.532]
[1724330927019,0.9179681,143.33,143.24,16.532]
[1724330927221,5.18694287,143.32,143.24,16.532]
[1724330927521,10.37387805,143.31,143.24,16.532]
[1724330927707,5.18693518,143.31,143.24,6.9811]
[1724330927906,5.18693518,143.3,143.24,6.9811]